fUSD/lending_fUSD_20241111
["ID","MTS","AMOUNT","RATE_DAILY","PERIOD"]
[342015750,1731364244617,-500.0,0.00013698,2]
[342015751,1731364244626,-500.0,0.00013698,2]
[342015752,1731364244635,-500.0,0.00013698,2]
[342015753,1731364244644,-661.6,0.00013698,2]
[342015754,1731364244653,-661.6,0.00013698,2]
[342015755,1731364244662,-661.6,0.00013698,2]
[342015756,1731364244671,-538.25726064,0.00013698,2]
[342015757,1731364244681,-500.0,0.00013698,2]
[342015758,1731364244690,-500.0,0.00013698,2]
[342015759,1731364244701,-500.0,0.00013698,2]
[342015760,1731364244711,-500.0,0.00013698,2]
[342015761,1731364244721,-500.0,0.00013698,2]
[342015762,1731364244730,-500.0,0.00013698,2]
[342015763,1731364244739,-500.0,0.00013698,2]
[342015764,1731364244748,-500.0,0.00013698,2]
[342015765,1731364244757,-631.02,0.00013698,2]
[342015766,1731364244766,-500.0,0.00013698,2]
[342015767,1731364244776,-500.0,0.00013698,2]
[342015768,1731364244785,-500.0,0.00013698,2]
[342015769,1731364244795,-500.0,0.00013698,2]
[342015770,1731364244805,-500.0,0.00013698,2]
[342015771,1731364244815,-574.33,0.00013698,2]
[342015772,1731364244828,-574.33,0.00013698,2]
[342015773,1731364244837,-500.0,0.00013698,2]
[342015774,1731364244847,-500.0,0.00013698,2]
[342015775,1731364244857,-500.0,0.00013698,2]
[342015776,1731364244867,-500.0,0.00013698,2]
[342015777,1731364244876,-500.0,0.00013698,2]
[342015778,1731364244886,-1013.88,0.00013698,2]
[342015779,1731364244895,-500.0,0.00013698,2]
[342015780,1731364244906,-1013.88,0.00013698,2]
[342015781,1731364244915,-500.0,0.00013698,2]
[342015782,1731364244925,-500.0,0.00013698,2]
[342015783,1731364244934,-535.40903834,0.00013698,2]
[342015784,1731364244944,-500.0,0.00013698,2]
[342015785,1731364244955,-500.0,0.00013698,2]
[342015786,1731364244964,-321.48816288,0.00013698,2]
[342015787,1731364244974,-500.0,0.00013698,2]
[342015788,1731364244983,-500.0,0.00013698,2]
[342015789,1731364244992,-500.0,0.00013698,2]
[342015790,1731364245002,-500.0,0.00013698,2]
[342015791,1731364245012,-500.0,0.00013698,2]
[342015792,1731364245021,-500.0,0.00013698,2]
[342015793,1731364245030,-500.0,0.00013698,2]
[342015794,1731364245039,-500.0,0.00013698,2]
[342015795,1731364245048,-500.0,0.00013698,2]
[342015796,1731364245058,-606.84,0.00013698,2]
[342015797,1731364245067,-276.56887739,0.00013698,2]
[342015798,1731364245077,-606.84,0.00013698,2]
[342015799,1731364245086,-500.0,0.00013698,2]
[342015800,1731364245095,-500.0,0.00013698,2]
[342015801,1731364245105,-500.0,0.00013698,2]
[342015802,1731364245114,-500.0,0.00013698,2]
[342015803,1731364245123,-178.74715347,0.00013698,2]
[342015804,1731364245132,-500.0,0.00013698,2]
[342015805,1731364245141,-500.0,0.00013698,2]
[342015806,1731364245151,-500.0,0.00013698,2]
[342015807,1731364245160,-500.0,0.00013698,2]
[342015808,1731364245169,-500.0,0.00013698,2]
[342015809,1731364245179,-500.0,0.00013698,2]
[342015810,1731364245188,-500.0,0.00013698,2]
[342015811,1731364245198,-500.0,0.00013698,2]
[342015812,1731364245210,-500.0,0.00013698,2]
[342015813,1731364245219,-500.0,0.00013698,2]
[342015814,1731364245391,-500.0,0.00013698,2]
[342015815,1731364245401,-500.0,0.00013698,2]
[342015816,1731364245411,-500.0,0.00013698,2]
[342015817,1731364245421,-500.0,0.00013698,2]
[342015818,1731364245430,-500.0,0.00013698,2]
[342015819,1731364245440,-500.0,0.00013698,2]
[342015820,1731364245451,-500.0,0.00013698,2]
[342015821,1731364245461,-500.0,0.00013698,2]
[342015822,1731364245472,-500.0,0.00013698,2]
[342015823,1731364245482,-516.2,0.00013698,2]
[342015824,1731364245492,-500.0,0.00013698,2]
[342015825,1731364245502,-500.0,0.00013698,2]
[342015826,1731364245511,-500.0,0.00013698,2]
[342015827,1731364245522,-500.0,0.00013698,2]
[342015828,1731364245532,-238.26417484,0.00013698,2]
[342015829,1731364245541,-608.92199504,0.00013698,2]
[342015830,1731364245551,-500.30691987,0.00013698,2]
[342015831,1731364245561,-500.0,0.00013698,2]
[342015832,1731364245570,-500.0,0.00013698,2]
[342015833,1731364245579,-500.0,0.00013698,2]
[342015834,1731364245587,-500.0,0.00013698,2]
[342015835,1731364245596,-500.0,0.00013698,2]
[342015836,1731364245605,-500.0,0.00013698,2]
[342015837,1731364245614,-500.0,0.00013698,2]
[342015838,1731364245624,-500.0,0.00013698,2]
[342015839,1731364245633,-500.0,0.00013698,2]
[342015840,1731364245642,-500.0,0.00013698,2]
[342015841,1731364245651,-500.0,0.00013698,2]
[342015842,1731364245660,-500.0,0.00013698,2]
[342015843,1731364245670,-500.0,0.00013698,2]
[342015844,1731364245679,-500.0,0.00013698,2]
[342015845,1731364245688,-1205.13,0.00013698,2]
[342015846,1731364245697,-1205.13,0.00013698,2]
[342015847,1731364245710,-500.0,0.00013698,2]
[342015848,1731364245719,-500.0,0.00013698,2]
[342015849,1731364245728,-500.0,0.00013698,2]
[342015850,1731364245737,-500.0,0.00013698,2]
[342015851,1731364245747,-500.0,0.00013698,2]
[342015852,1731364245756,-500.0,0.00013698,2]
[342015853,1731364245766,-500.0,0.00013698,2]
[342015854,1731364245775,-260.61,0.00013698,2]
[342015855,1731364245784,-500.0,0.00013698,2]
[342015856,1731364245793,-500.0,0.00013698,2]
[342015857,1731364245802,-500.0,0.00013698,2]
[342015858,1731364245813,-500.0,0.00013698,2]
[342015859,1731364245825,-500.0,0.00013698,2]
[342015860,1731364245835,-456.1,0.00013698,2]
[342015861,1731364245844,-500.0,0.00013698,2]
[342015862,1731364245854,-500.0,0.00013698,2]
[342015863,1731364245865,-442.89723494,0.00013698,2]
[342015864,1731364245875,-500.0,0.00013698,2]
[342015865,1731364245886,-500.0,0.00013698,2]
[342015866,1731364245897,-267.14,0.00013698,2]
[342015867,1731364245907,-500.0,0.00013698,2]
[342015868,1731364245918,-500.0,0.00013698,2]
[342015869,1731364245929,-500.0,0.00013698,2]
[342015870,1731364245939,-500.0,0.00013698,2]
[342015871,1731364245949,-500.0,0.00013698,2]
[342015872,1731364245960,-4698.51,0.00013698,2]
[342015873,1731364245971,-4698.51,0.00013698,2]
[342015874,1731364245981,-4698.51,0.00013698,2]
[342015875,1731364245992,-4698.51,0.00013698,2]
[342015876,1731364246002,-4698.51,0.00013698,2]
[342015877,1731364246012,-4698.51,0.00013698,2]
[342015878,1731364246022,-581.84,0.00013698,2]
[342015879,1731364246033,-581.84,0.00013698,2]
[342015880,1731364246044,-500.0,0.00013698,2]
[342015881,1731364246054,-500.0,0.00013698,2]
[342015882,1731364246065,-500.0,0.00013698,2]
[342015883,1731364246075,-500.0,0.00013698,2]
[342015884,1731364246086,-500.0,0.00013698,2]
[342015885,1731364246096,-500.0,0.00013698,2]
[342015886,1731364246107,-500.0,0.00013698,2]
[342015887,1731364246117,-224.2,0.00013698,2]
[342015888,1731364246127,-607.03,0.00013698,2]
[342015889,1731364246137,-607.03,0.00013698,2]
[342015890,1731364246147,-638.46,0.00013698,2]
[342015891,1731364246158,-500.0,0.00013698,2]
[342015892,1731364246169,-500.0,0.00013698,2]
[342015894,1731364246179,-500.0,0.00013698,2]
[342015895,1731364246189,-424.14,0.00013698,2]
[342015896,1731364246199,-500.0,0.00013698,2]
[342015898,1731364246210,-500.0,0.00013698,2]
[342015900,1731364246221,-500.0,0.00013698,2]
[342015902,1731364246231,-500.0,0.00013698,2]
[342015903,1731364246241,-500.0,0.00013698,2]
[342015904,1731364246251,-500.0,0.00013698,2]
[342015905,1731364246261,-507.8762366,0.00013698,2]
[342015906,1731364246272,-500.0,0.00013698,2]
[342015907,1731364246282,-500.0,0.00013698,2]
[342015909,1731364246292,-500.0,0.00013698,2]
[342015910,1731364246303,-508.96201135,0.00013698,2]
[342015911,1731364246314,-542.88,0.00013698,2]
[342015912,1731364246325,-500.0,0.00013698,2]
[342015913,1731364246335,-500.0,0.00013698,2]
[342015914,1731364246345,-542.88,0.00013698,2]
[342015916,1731364246355,-500.0,0.00013698,2]
[342015917,1731364246366,-500.0,0.00013698,2]
[342015919,1731364246376,-500.0,0.00013698,2]
[342015921,1731364246386,-542.88,0.00013698,2]
[342015923,1731364246396,-500.0,0.00013698,2]
[342015925,1731364246406,-542.88,0.00013698,2]
[342015927,1731364246416,-500.0,0.00013698,2]
[342015931,1731364246426,-538.65,0.00013698,2]
[342015933,1731364246436,-542.88,0.00013698,2]
[342015935,1731364246445,-466.2,0.00013698,2]
[342015936,1731364246457,-538.65,0.00013698,2]
[342015937,1731364246467,-542.88,0.00013698,2]
[342015938,1731364246477,-538.65,0.00013698,2]
[342015940,1731364246487,-538.65,0.00013698,2]
[342015942,1731364246497,-538.65,0.00013698,2]
[342015944,1731364246507,-538.65,0.00013698,2]
[342015946,1731364246518,-500.0,0.00013698,2]
[342015948,1731364246528,-500.0,0.00013698,2]
[342015950,1731364246538,-500.0,0.00013698,2]
[342015952,1731364246549,-500.0,0.00013698,2]
[342015954,1731364246558,-500.0,0.00013698,2]
[342015956,1731364246568,-500.0,0.00013698,2]
[342015958,1731364246578,-500.0,0.00013698,2]
[342015960,1731364246588,-500.0,0.00013698,2]
[342015962,1731364246599,-500.0,0.00013698,2]
[342015964,1731364246608,-500.0,0.00013698,2]
[342015965,1731364246618,-500.0,0.00013698,2]
[342015966,1731364246627,-500.0,0.00013698,2]
[342015967,1731364246637,-500.0,0.00013698,2]
[342015968,1731364246647,-500.0,0.00013698,2]
[342015969,1731364246655,-572.35,0.00013698,2]
[342015970,1731364246665,-572.35,0.00013698,2]
[342015971,1731364246675,-500.0,0.00013698,2]
[342015972,1731364246684,-572.35,0.00013698,2]
[342015973,1731364246694,-519.12204157,0.00013698,2]
[342015974,1731364246706,-500.0,0.00013698,2]
[342015975,1731364246716,-572.35,0.00013698,2]
[342015976,1731364246725,-572.35,0.00013698,2]
[342015977,1731364246735,-572.35,0.00013698,2]
[342015978,1731364246744,-500.0,0.00013698,2]
[342015979,1731364246754,-500.0,0.00013698,2]
[342015980,1731364246765,-274.7,0.00013698,2]
[342015981,1731364246776,-500.0,0.00013698,2]
[342015982,1731364246785,-500.0,0.00013698,2]
[342015983,1731364246795,-500.0,0.00013698,2]
[342015984,1731364246804,-500.0,0.00013698,2]
[342015985,1731364246816,-502.38373646,0.00013698,2]
[342015986,1731364246828,-500.0,0.00013698,2]
[342015987,1731364246837,-500.0,0.00013698,2]
[342015988,1731364246847,-500.0,0.00013698,2]
[342015989,1731364246857,-500.0,0.00013698,2]
[342015990,1731364246868,-192.76,0.00013698,2]
[342015991,1731364246877,-500.0,0.00013698,2]
[342015992,1731364246887,-500.0,0.00013698,2]
[342015993,1731364246897,-714.56,0.00013698,2]
[342015994,1731364246908,-500.0,0.00013698,2]
[342015995,1731364246918,-714.56,0.00013698,2]
[342015996,1731364246927,-714.56,0.00013698,2]
[342015997,1731364246937,-714.56,0.00013698,2]
[342015998,1731364246947,-714.56,0.00013698,2]
[342015999,1731364246959,-500.0,0.00013698,2]
[342016000,1731364246969,-714.56,0.00013698,2]
[342016002,1731364246979,-500.0,0.00013698,2]
[342016003,1731364246989,-500.0,0.00013698,2]
[342016005,1731364247001,-500.0,0.00013698,2]
[342016008,1731364247011,-156.36714825,0.00013698,2]
[342016010,1731364247021,-500.0,0.00013698,2]
[342016011,1731364247031,-500.0,0.00013698,2]
[342016013,1731364247041,-507.50597659,0.00013698,2]
[342016016,1731364247050,-500.0,0.00013698,2]
[342016018,1731364247060,-500.0,0.00013698,2]
[342016020,1731364247069,-500.0,0.00013698,2]
[342016022,1731364247079,-208.55110251,0.00013698,2]
[342016024,1731364247089,-636.63,0.00013698,2]
[342016026,1731364247098,-250.0,0.00013699,2]
[342016028,1731364247108,-150.0,0.00013699,2]
[342016030,1731364247121,-456.26,0.00013699,2]
[342016032,1731364247130,-6367.88,0.00013699,2]
[342016034,1731364247138,-368.81,0.00013699,2]
[342016036,1731364247147,-200.0,0.000137,2]
[342016038,1731364247156,-516.71,0.00013758,2]
[342016040,1731364247165,-150.0,0.00013846,2]
[342016042,1731364247173,-3819.56854959,0.00013877,2]
[342016043,1731364247182,-158.94726711,0.00013889,2]
[342016045,1731364247190,-516.5267906,0.00013889,2]
[342016047,1731364247199,-560.00042829,0.00013889,2]
[342016049,1731364247210,-387.15400635,0.00013889,2]
[342016051,1731364247218,-500.0,0.00013889,2]
[342016053,1731364247227,-940.765,0.0001389,2]
[342016055,1731364247236,-568.77958039,0.00013914,2]
[342016057,1731364247244,-420.0,0.0001393,2]
[342016059,1731364247253,-460.30262154,0.00013973,2]
[342016061,1731364247262,-417.17734151,0.00013973,2]
[342016063,1731364247271,-500.0,0.00013973,2]
[342016065,1731364247280,-500.0,0.00013973,2]
[342016067,1731364247289,-500.0,0.00013973,2]
[342016069,1731364247298,-500.0,0.00013973,2]
[342016071,1731364247308,-445536.34785773,0.00014,2]
[342016107,1731364247623,-401169.80587237,0.00014,2]
[342016110,1731364247634,-1409.84535569,0.00014,2]
[342016114,1731364247664,-636.63,0.00013698,2]
[342016116,1731364247672,-1164.20630289,0.00014,2]
[342016120,1731364247696,-2322.0744563,0.00014,2]
[342016135,1731364247834,-636.63,0.00013698,2]
[342016137,1731364247843,-636.63,0.00013698,2]
[342016139,1731364247852,-636.63,0.00013698,2]
[342016141,1731364247862,-636.63,0.00013698,2]
[342016143,1731364247871,-3786.96934774,0.00014,2]
[342016146,1731364247882,-49543.23895366,0.00014,2]
[342016148,1731364247892,-1414.68400002,0.00014,2]
[342016150,1731364247904,-3883.0723924,0.00014,2]
[342016152,1731364247918,-429.04175051,0.00014,2]
[342016155,1731364247929,-472.02580349,0.00014,2]
[342016157,1731364247940,-2357.470003,0.00014,2]
[342016161,1731364247972,-3613.75464661,0.00014,2]
[342016163,1731364247983,-1683.6917,0.00014,2]
[342016165,1731364247994,-3126.70614937,0.00014,2]
[342016167,1731364248005,-4367.94376888,0.00014,2]
[342016170,1731364248025,-20845.51190874,0.00014,2]
[342016194,1731364248245,-500.0,0.00013698,2]
[342016196,1731364248254,-628.0,0.00013995,2]
[342016198,1731364248263,-16221.56140744,0.00014,2]
[342016200,1731364248275,-670.14663976,0.00014,2]
[342016204,1731364248303,-80479.16650955,0.00014,2]
[342016206,1731364248314,-4326.5,0.00014,2]
[342016208,1731364248325,-2669.17281841,0.00014,2]
[342016211,1731364248336,-7686.83131455,0.00014,2]
[342016214,1731364248358,-500.0,0.00013698,2]
[342016216,1731364248367,-4876.44700216,0.00014,2]
[342016218,1731364248378,-1865.52710064,0.00014,2]
[342016221,1731364248396,-429.6337483,0.00014,2]
[342016223,1731364248407,-1640.0,0.00014,2]
[342016226,1731364248418,-1188.73254669,0.00014,2]
[342016277,1731364248907,-500.0,0.00013698,2]
[342016280,1731364248918,-336292.53501726,0.00014,2]
[342016282,1731364248927,-1000.0,0.00014007,2]
[342016283,1731364248936,-173.17,0.0001404,2]
[342016285,1731364248945,-800.0,0.00014076,2]
[342016287,1731364248956,-2300.0,0.00014076,2]
[342016289,1731364248966,-500.0,0.00014094,2]
[342016292,1731364248976,-387.72223474,0.00014094,2]
[342016294,1731364248985,-500.0,0.00014094,2]
[342016296,1731364248996,-500.0,0.00014094,2]
[342016298,1731364249005,-500.0,0.00014094,2]
[342016300,1731364249015,-500.0,0.00014094,2]
[342016302,1731364249024,-500.0,0.00014094,2]
[342016304,1731364249034,-500.0,0.00014094,2]
[342016306,1731364249044,-500.0,0.00014094,2]
[342016308,1731364249053,-500.0,0.00014094,2]
[342016310,1731364249062,-1882.716,0.00014095,2]
[342016312,1731364249072,-559.0,0.00014095,2]
[342016314,1731364249081,-3744.0,0.00014095,2]
[342016316,1731364249090,-453.0,0.00014095,2]
[342016318,1731364249100,-1254.0,0.00014095,2]
[342016320,1731364249109,-5929.0,0.00014095,2]
[342016322,1731364249117,-150.0,0.00014095,2]
[342016324,1731364249126,-631.0,0.00014095,2]
[342016326,1731364249135,-563.0,0.00014095,2]
[342016328,1731364249145,-13631.0,0.00014095,2]
[342016330,1731364249154,-3819.56854959,0.00014133,2]
[342016332,1731364249164,-150.0,0.00014182,2]
[342016334,1731364249173,-568.77958039,0.00014243,2]
[342016336,1731364249182,-516.71,0.00014356,2]
[342016338,1731364249191,-3819.56854959,0.00014389,2]
[342016340,1731364249201,-605.00107924,0.0001439,2]
[342016342,1731364249211,-164.85,0.00014543,2]
[342016343,1731364249220,-568.77958039,0.00014571,2]
[342016345,1731364249229,-3819.56854959,0.00014644,2]
[342016348,1731364249239,-1003.36,0.00014652,2]
[342016349,1731364249249,-381.26787788,0.00014733,2]
[342016351,1731364249259,-190.3005,0.00014788,2]
[342016353,1731364249268,-500.0,0.00014797,2]
[342016355,1731364249277,-1362.21,0.00014797,2]
[342016358,1731364249287,-378.06,0.00014797,2]
[342016360,1731364249296,-500.0,0.00014797,2]
[342016362,1731364249306,-340.86,0.00014797,2]
[342016364,1731364249315,-500.0,0.00014797,2]
[342016366,1731364249324,-500.0,0.00014797,2]
[342016368,1731364249333,-500.0,0.00014797,2]
[342016370,1731364249342,-634.91,0.00014797,2]
[342016372,1731364249351,-500.0,0.00014797,2]
[342016374,1731364249360,-500.0,0.00014797,2]
[342016376,1731364249369,-500.0,0.00014797,2]
[342016378,1731364249379,-513.68,0.00014797,2]
[342016380,1731364249387,-500.0,0.00014797,2]
[342016382,1731364249396,-1000.0,0.00014797,2]
[342016384,1731364249405,-500.0,0.00014797,2]
[342016386,1731364249415,-500.0,0.00014797,2]
[342016388,1731364249423,-500.0,0.00014797,2]
[342016390,1731364249432,-288.23,0.00014797,2]
[342016392,1731364249441,-500.0,0.00014797,2]
[342016394,1731364249451,-1164.73,0.00014797,2]
[342016395,1731364249462,-177.16610602,0.00014797,2]
[342016397,1731364249471,-732.35,0.00014797,2]
[342016399,1731364249481,-500.0,0.00014797,2]
[342016401,1731364249492,-574.33,0.00014797,2]
[342016403,1731364249501,-500.0,0.00014797,2]
[342016405,1731364249511,-1205.13,0.00014797,2]
[342016408,1731364249520,-581.84,0.00014797,2]
[342016410,1731364249530,-607.03,0.00014797,2]
[342016412,1731364249540,-500.0,0.00014797,2]
[342016414,1731364249550,-500.0,0.00014797,2]
[342016416,1731364249560,-500.0,0.00014799,2]
[342016418,1731364249570,-500.0,0.00014799,2]
[342016420,1731364249580,-500.0,0.00014799,2]
[342016421,1731364249590,-614.17,0.00014799,2]
[342016422,1731364249600,-1213.02,0.00014799,2]
[342016423,1731364249610,-500.0,0.00014799,2]
[342016424,1731364249620,-921.09,0.00014799,2]
[342016425,1731364249629,-661.6,0.00014799,2]
[342016426,1731364249638,-500.0,0.00014799,2]
[342016427,1731364249648,-500.0,0.00014799,2]
[342016428,1731364249658,-500.0,0.00014799,2]
[342016429,1731364249668,-500.0,0.00014799,2]
[342016430,1731364249677,-500.0,0.00014799,2]
[342016431,1731364249686,-496.33,0.00014799,2]
[342016432,1731364249696,-500.0,0.00014799,2]
[342016433,1731364249708,-4698.51,0.00014799,2]
[342016435,1731364249717,-542.88,0.00014799,2]
[342016437,1731364249726,-538.65,0.00014799,2]
[342016439,1731364249735,-500.0,0.00014799,2]
[342016441,1731364249745,-572.35,0.00014799,2]
[342016443,1731364249755,-500.0,0.00014799,2]
[342016445,1731364249764,-714.56,0.00014799,2]
[342016447,1731364249775,-636.63,0.00014799,2]
[342016449,1731364249784,-100000.0,0.000148,2]
[342016451,1731364249793,-500.0,0.000148,2]
[342016453,1731364249803,-164.33035333,0.00014887,2]
[342016455,1731364249812,-177.11791615,0.00014897,2]
[342016457,1731364249824,-172.71315067,0.00014898,2]
[342016458,1731364249834,-177.11791612,0.00014898,2]
[342016460,1731364249844,-273.78092086,0.00014898,2]
[342016462,1731364249853,-177.11791612,0.00014899,2]
[342016464,1731364249863,-273.78092086,0.00014899,2]
[342016466,1731364249872,-500.0,0.000149,2]
[342016468,1731364249882,-177.11791612,0.000149,2]
[342016470,1731364249891,-1000.0,0.000149,2]
[342016472,1731364249901,-278.77423778,0.000149,2]
[342016474,1731364249910,-273.78092086,0.000149,2]
[342016476,1731364249919,-568.77958039,0.000149,2]
[342016478,1731364249929,-3819.56854959,0.000149,2]
[342016480,1731364249937,-378.56327287,0.00014973,2]
[342016482,1731364249947,-500.0,0.00014973,2]
[342016484,1731364249959,-500.0,0.00014973,2]
[342016486,1731364249968,-500.0,0.00014973,2]
[342016488,1731364249977,-500.0,0.00014973,2]
[342016490,1731364249987,-500.0,0.00014973,2]
[342016492,1731364249996,-162.38858453,0.00014973,2]
[342016494,1731364250005,-2805.43260082,0.00014984,3]
[342016496,1731364250015,-2178.5247726,0.00014987,2]
[342016498,1731364250024,-1054.4334525,0.00014987,2]
[342016500,1731364250034,-500.0,0.00014989,2]
[342016502,1731364250043,-500.0,0.00014989,2]
[342016505,1731364250053,-500.0,0.00014989,2]
[342016506,1731364250062,-500.0,0.00014989,2]
[342016509,1731364250072,-500.0,0.00014989,2]
[342016510,1731364250082,-513.75069655,0.00014989,2]
[342016512,1731364250092,-603.65,0.00014989,2]
[342016514,1731364250101,-500.0,0.00014989,2]
[342016516,1731364250111,-1982.1031742,0.0001499,2]
[342016518,1731364250121,-1785.6815758,0.0001499,2]
[342016521,1731364250131,-1589.2599774,0.0001499,2]
[342016522,1731364250140,-1392.838379,0.0001499,2]
[342016524,1731364250149,-1196.4167806,0.0001499,2]
[342016526,1731364250159,-959.3629227,0.0001499,2]
[342016529,1731364250169,-864.292393,0.0001499,2]
[342016530,1731364250178,-769.2218633,0.0001499,2]
[342016532,1731364250188,-674.1513336,0.0001499,2]
[342016534,1731364250197,-579.0808039,0.0001499,2]
[342016536,1731364250209,-3209.84835585,0.00014991,2]
[342016538,1731364250219,-500.0,0.00014997,2]
[342016540,1731364250228,-500.0,0.00014997,2]
[342016542,1731364250237,-500.0,0.00014997,2]
[342016544,1731364250246,-500.0,0.00014997,2]
[342016546,1731364250255,-500.0,0.00014997,2]
[342016548,1731364250264,-563.62,0.00014997,2]
[342016550,1731364250274,-500.0,0.00014997,2]
[342016552,1731364250283,-150.0,0.00014997,2]
[342016554,1731364250292,-587.04,0.00014997,2]
[342016556,1731364250301,-500.0,0.00014997,2]
[342016558,1731364250310,-500.0,0.00014997,2]
[342016560,1731364250320,-500.0,0.00014997,2]
[342016562,1731364250329,-150.0,0.00014997,2]
[342016564,1731364250338,-500.0,0.00014997,2]
[342016566,1731364250347,-150.0,0.00014997,2]
[342016568,1731364250356,-150.0,0.00014997,2]
[342016570,1731364250365,-150.0,0.00014997,2]
[342016572,1731364250374,-150.0,0.00014997,2]
[342016574,1731364250383,-150.0,0.00014997,2]
[342016576,1731364250392,-150.0,0.00014997,2]
[342016578,1731364250401,-150.0,0.00014997,2]
[342016580,1731364250410,-500.0,0.00014997,2]
[342016582,1731364250420,-150.0,0.00014997,2]
[342016584,1731364250429,-150.0,0.00014997,2]
[342016586,1731364250438,-150.0,0.00014997,2]
[342016588,1731364250447,-500.0,0.00014997,2]
[342016590,1731364250460,-548.5,0.00014997,2]
[342016592,1731364250470,-500.0,0.00014997,2]
[342016594,1731364250479,-500.0,0.00014997,2]
[342016596,1731364250488,-500.0,0.00014997,2]
[342016598,1731364250497,-150.0,0.00014997,2]
[342016600,1731364250506,-150.0,0.00014997,2]
[342016602,1731364250515,-150.0,0.00014997,2]
[342016604,1731364250524,-150.0,0.00014997,2]
[342016606,1731364250534,-500.0,0.00014997,2]
[342016608,1731364250543,-528.72,0.00014997,2]
[342016610,1731364250553,-500.0,0.00014997,2]
[342016612,1731364250563,-500.0,0.00014997,2]
[342016614,1731364250573,-250.0,0.00014997,2]
[342016616,1731364250583,-500.0,0.00014997,2]
[342016618,1731364250592,-500.0,0.00014997,2]
[342016620,1731364250602,-500.0,0.00014997,2]
[342016622,1731364250611,-500.0,0.00014997,2]
[342016624,1731364250621,-500.0,0.00014997,2]
[342016626,1731364250630,-500.0,0.00014997,2]
[342016628,1731364250639,-582.65309883,0.00014997,2]
[342016630,1731364250648,-500.0,0.00014997,2]
[342016632,1731364250657,-369.66,0.00014997,2]
[342016634,1731364250667,-500.0,0.00014997,2]
[342016636,1731364250678,-500.0,0.00014997,2]
[342016638,1731364250688,-500.0,0.00014997,2]
[342016640,1731364250697,-500.0,0.00014997,2]
[342016642,1731364250709,-500.0,0.00014997,2]
[342016644,1731364250718,-421.25,0.00014997,2]
[342016646,1731364250727,-170.10642788,0.00014997,2]
[342016648,1731364250736,-1362.21,0.00014997,2]
[342016650,1731364250744,-500.0,0.00014997,2]
[342016652,1731364250753,-413.8,0.00014997,2]
[342016654,1731364250763,-500.0,0.00014997,2]
[342016656,1731364250772,-500.0,0.00014997,2]
[342016658,1731364250781,-500.0,0.00014997,2]
[342016660,1731364250791,-439.84173422,0.00014997,2]
[342016662,1731364250801,-500.0,0.00014997,2]
[342016664,1731364250810,-500.0,0.00014997,2]
[342016666,1731364250824,-386.99,0.00014997,2]
[342016668,1731364250833,-500.0,0.00014997,2]
[342016670,1731364250842,-500.0,0.00014997,2]
[342016672,1731364250851,-500.0,0.00014997,2]
[342016674,1731364250862,-500.0,0.00014997,2]
[342016676,1731364250871,-500.0,0.00014997,2]